[Event "Turkish Super League 2019"]
[Site "Konya"]
[Date "2019.07.20"]
[Round "4"]
[White "Rakhmanov, Aleksandr"]
[Black "Visakh N R"]
[Result "1-0"]
[ECO "E06"]
[WhiteElo "2615"]
[BlackElo "2526"]
[Annotator "RC"]
[PlyCount "141"]
[EventDate "2019.07.17"]
[EventType "team-tourn"]
[EventCountry "TUR"]
[SourceTitle "playchess.com"]
[Source "ChessBase"]
[SourceQuality "1"]
[TimeControl "40/5400+30:1800+30"]

1. c4 e6 2. Nc3 d5 3. d4 Be7 4. Nf3 Nf6 5. g3 dxc4 6. Bg2 O-O 7. Ne5 Nc6 8. Bxc6 bxc6 9. Nxc6 Qe8 10. Nxe7+ Qxe7 11. Qa4 Bb7 12. O-O c5 13. dxc5 Qxc5 14. Be3 Qc6 15. Qxc6 Bxc6 16. Bd4 Nd5 17. Nxd5 Bxd5 18. Bc3 Rfd8 19. Rfd1 Bc6 20. Ba5 Rd5 21. Rxd5 exd5 22. Rd1 Re8 23. Kf1 f6 24. f3 Kf7 25. Kf2 h5 26. h3 a6 27. Rd4 {[%emt 1:13:30]} g5 {[%emt 1:07:30]} 28. Bc3 {[%emt 0:01:30]} Re6 {[%emt 0:09:30]} 29. Rd1 {[%emt 0:16:32]} Kg6 {[%emt 0:01:30]} 30. Bd4 {[%emt 0:03:31]} Re8 {[%emt 0:02:30]} 31. Bc3 {[%emt 0:01:17]} Bb7 {[%emt 0:03:30]} 32. Rc1 {[%emt 0:02:50]} Bc8 {[%emt 0:00:30]} 33. Rh1 {[%emt 0:01:00]} Bf5 {[%emt 0:06:03]} 34. g4 {[%emt 0:01:24]} Be6 {[%emt 0:00:41]} 35. gxh5+ {[%emt 0:01:42]} Kf7 {[%emt 0:00:05]} 36. h4 {[%emt 0:01:44]} g4 {[%emt 0:00:08]} 37. Rg1 {[%emt 0:02:40]} gxf3 {[%emt 0:00:43]} 38. Rg6 {[%emt 0:00:41]} fxe2 {[%emt 0:02:21]} 39. Rxf6+ {[%emt 0:00:01]} Kg8 {[%emt 0:01:10]} 40. Kxe2 {[%emt 0:00:00]} Bg4+ {[%emt 0:00:00]} 41. Kd2 {[%emt 0:06:08]} Re4 {[%emt 0:29:30]} 42. Rg6+ {[%emt 0:08:22]} Kh7 {[%emt 0:00:57]} 43. Rd6 {[%emt 0:00:13]} Bxh5 {[%emt 0:05:32]} 44. Rxd5 {[%emt 0:00:34]} Rxh4 {[%emt 0:06:27]} 45. Rd6 {[%emt 0:02:20]} Kg8 {[%emt 0:00:13]} 46. Rxa6 {[%emt 0:01:40]} Kf7 {[%emt 0:00:01]} 47. a4 {[%emt 0:00:16]} Ke8 {[%emt 0:01:00]} 48. Ke3 {[%emt 0:02:52]} Rh3+ {[%emt 0:00:34]} 49. Kd4 {[%emt 0:01:24]} Bf3 {[%emt 0:00:03]} 50. Rf6 {[%emt 0:00:49]} Kd7 {[%emt 0:00:39]} 51. Kc5 {[%emt 0:00:38]} Bh1 {[%emt 0:02:13]} 52. a5 {[%emt 0:01:24]} Kc8 {[%emt 0:00:59]} 53. a6 {[%emt 0:01:07]} Rh8 {[%emt 0:01:28]} 54. Kb6 {[%emt 0:05:29]} Re8 {[%emt 0:00:02]} 55. a7 {[%emt 0:01:21]} Ba8 {[%emt 0:00:17]} 56. Bb4 {[%emt 0:00:22]} Rd8 {[%emt 0:00:47]} 57. Rf4 {[%emt 0:01:39]} Rd7 {[%emt 0:01:01]} 58. Rxc4+ {[%emt 0:00:32]} Kd8 {[%emt 0:00:02]} 59. Rh4 {[%emt 0:00:55]} Kc8 {[%emt 0:00:32]} 60. Rh8+ {[%emt 0:00:52]} Rd8 {[%emt 0:00:01]} 61. Rh6 {[%emt 0:01:07]} Rd7 {[%emt 0:00:05]} 62. Ba5 {[%emt 0:00:50]} Rd8 {[%emt 0:01:45]} 63. b4 {[%emt 0:00:33]} Re8 {[%emt 0:00:35]} 64. b5 {[%emt 0:00:42]} Kd7 {[%emt 0:00:07]} 65. Bb4 {[%emt 0:00:10]} Be4 {[%emt 0:00:27]} 66. Rd6+ {[%emt 0:00:55]} Kc8 {[%emt 0:00:02]} 67. Rc6+ {[%emt 0:00:34]} Kd7 {[%emt 0:00:01]} 68. Rc7+ {[%emt 0:00:35]} Ke6 {[%emt 0:00:01]} 69. Rb7 {[%emt 0:00:24]} Kd5 {[%emt 0:02:24]} 70. Rb8 {[%emt 0:00:50]} Re6+ {[%emt 0:00:01]} 71. Ka5 {[%emt 0:00:10]} 1-0

[Event "Turkish Super League 2019"]
[Site "Konya"]
[Date "2019.07.20"]
[Round "4"]
[White "Mchedlishvili, Mikheil"]
[Black "Asadli, Vugar"]
[Result "1/2-1/2"]
[ECO "E01"]
[WhiteElo "2571"]
[BlackElo "2502"]
[Annotator "ChessBase"]
[PlyCount "62"]
[EventDate "2019.07.17"]
[EventType "team-tourn"]
[EventCountry "TUR"]
[SourceTitle "playchess.com"]
[Source "ChessBase"]
[SourceQuality "1"]
[TimeControl "40/5400+30:1800+30"]

1. d4 e6 2. c4 Nf6 3. g3 d5 4. Nf3 Bb4+ 5. Bd2 Bd6 6. Nc3 O-O 7. Bg5 Be7 8. Bg2 Nbd7 9. Qd3 c6 10. O-O b6 11. Rfd1 Ba6 12. b3 Rc8 13. Rac1 h6 14. Bf4 c5 15. Nb5 Bxb5 16. cxb5 Nh5 17. Bd2 Nhf6 18. Bc3 Ne4 19. Bb2 {[%emt 1:16:30]} Nd6 {[%emt 1:03:30]} 20. Ne5 {[%emt 0:00:30]} Bf6 {[%emt 0:03:30]} 21. a4 {[%emt 0:03:30]} cxd4 {[%emt 0:07:30]} 22. Nc6 {[%emt 0:11:14]} Ne5 {[%emt 0:00:30]} 23. Nxe5 {[%emt 0:00:35]} Bxe5 {[%emt 0:00:30]} 24. Bxd4 {[%emt 0:00:07]} Qf6 {[%emt 0:00:30]} 25. Be3 {[%emt 0:00:17]} Bb2 {[%emt 0:00:30]} 26. Rc6 {[%emt 0:00:00]} Rxc6 {[%emt 0:00:30]} 27. bxc6 {[%emt 0:00:00]} Rc8 {[%emt 0:00:30]} 28. Qa6 {[%emt 0:00:24]} Qe7 {[%emt 0:02:30]} 29. Rd2 {[%emt 0:01:00]} Bc3 {[%emt 0:00:00]} 30. Rc2 {[%emt 0:05:45]} Rxc6 {[%emt 0:00:00]} 31. a5 {[%emt 0:00:32]} Qc7 {[%emt 0:05:30]} 1/2-1/2

[Event "Turkish Super League 2019"]
[Site "Konya"]
[Date "2019.07.20"]
[Round "4"]
[White "Heberla, Bartlomiej"]
[Black "Firat, Burak"]
[Result "1/2-1/2"]
[ECO "A28"]
[WhiteElo "2534"]
[BlackElo "2463"]
[Annotator "ChessBase"]
[PlyCount "60"]
[EventDate "2019.07.17"]
[EventType "team-tourn"]
[EventCountry "TUR"]
[SourceTitle "playchess.com"]
[Source "ChessBase"]
[SourceQuality "1"]
[TimeControl "40/5400+30:1800+30"]

1. c4 Nf6 2. Nc3 e5 3. Nf3 Nc6 4. e3 d5 5. cxd5 Nxd5 6. Bb5 Nxc3 7. bxc3 Bd6 8. d4 Bd7 9. O-O O-O 10. Bxc6 Bxc6 11. dxe5 Bxf3 12. Qxf3 Bxe5 13. Ba3 Re8 14. Qxb7 Qh4 15. g3 Qa4 16. Qb4 Qa6 17. Qb2 Rab8 18. Bb4 c5 19. Qa3 Qxa3 20. Bxa3 Bxc3 21. Rac1 Bb2 22. Bxb2 Rxb2 23. a4 Rc8 24. Rfd1 g6 {[%emt 1:23:26]} 25. Rd4 {[%emt 1:14:30]} a5 {[%emt 0:06:12]} 26. Rdc4 {[%emt 0:03:30]} Ra2 {[%emt 0:02:01]} 27. Rb1 {[%emt 0:02:30]} Rc6 {[%emt 0:03:40]} 28. Rb5 {[%emt 0:08:47]} Rf6 {[%emt 0:00:30]} 29. Rf4 {[%emt 0:00:02]} Rxf4 {[%emt 0:00:30]} 30. gxf4 {[%emt 0:00:30]} Rxa4 {[%emt 0:00:00]} 1/2-1/2

[Event "Turkish Super League 2019"]
[Site "Konya"]
[Date "2019.07.20"]
[Round "4"]
[White "Dimitrov, Radoslav"]
[Black "Romanov, Evgeny"]
[Result "1/2-1/2"]
[ECO "A28"]
[WhiteElo "2530"]
[BlackElo "2582"]
[Annotator "ChessBase"]
[PlyCount "81"]
[EventDate "2019.07.17"]
[EventType "team-tourn"]
[EventCountry "TUR"]
[SourceTitle "playchess.com"]
[Source "ChessBase"]
[SourceQuality "1"]
[TimeControl "40/5400+30:1800+30"]

1. c4 Nf6 2. Nc3 e5 3. Nf3 Nc6 4. d4 exd4 5. Nxd4 Bb4 6. g3 Nxd4 7. Qxd4 c5 8. Qe5+ Qe7 9. Qxe7+ Kxe7 10. Bd2 d6 11. Bg2 Be6 12. b3 Rab8 13. a3 Bxc3 14. Bxc3 b5 15. cxb5 Bxb3 16. a4 d5 17. O-O d4 18. Bb2 Bd5 19. Ba3 Kd6 20. Rac1 Rhc8 21. Rfd1 Bxg2 22. Kxg2 Kd5 23. e3 Nd7 24. exd4 c4 25. Rc3 g6 26. Rdc1 Nb6 {[%emt 1:24:18]} 27. Bc5 {[%emt 0:54:30]} Nxa4 {[%emt 0:00:30]} 28. Rxc4 {[%emt 0:00:30]} Nxc5 {[%emt 0:00:30]} 29. Rxc5+ {[%emt 0:00:30]} Rxc5 {[%emt 0:00:30]} 30. Rxc5+ {[%emt 0:00:30]} Kxd4 {[%emt 0:00:30]} 31. Rc7 {[%emt 0:00:30]} Rxb5 {[%emt 0:00:30]} 32. Rxf7 {[%emt 0:00:00]} a5 {[%emt 0:05:45]} 33. Rxh7 {[%emt 0:00:00]} Kc3 {[%emt 0:00:36]} 34. h4 {[%emt 0:01:30]} a4 {[%emt 0:00:25]} 35. Rh6 {[%emt 0:01:30]} a3 {[%emt 0:04:27]} 36. Rxg6 {[%emt 0:00:00]} Ra5 {[%emt 0:00:10]} 37. Rc6+ {[%emt 0:00:00]} Kd2 {[%emt 0:01:46]} 38. Rd6+ {[%emt 0:00:30]} Kc2 {[%emt 0:00:17]} 39. Rc6+ {[%emt 0:00:30]} Kd2 {[%emt 0:06:06]} 40. Rd6+ {[%emt 0:00:00]} Kc2 {[%emt 0:00:00]} 41. Rc6+ {[%emt 0:00:00]} 1/2-1/2

[Event "Turkish Super League 2019"]
[Site "Konya"]
[Date "2019.07.20"]
[Round "4"]
[White "Iljiushenok, Ilia"]
[Black "Dastan, Muhammed Batuhan"]
[Result "0-1"]
[ECO "B94"]
[WhiteElo "2520"]
[BlackElo "2565"]
[Annotator "ChessBase"]
[PlyCount "130"]
[EventDate "2019.07.17"]
[EventType "team-tourn"]
[EventCountry "TUR"]
[SourceTitle "playchess.com"]
[Source "ChessBase"]
[SourceQuality "1"]
[TimeControl "40/5400+30:1800+30"]

1. e4 c5 2. Nf3 d6 3. d4 cxd4 4. Nxd4 Nf6 5. Nc3 a6 6. Bg5 Nbd7 7. Bc4 Qb6 8. Bb3 e6 9. O-O Be7 10. Kh1 Nc5 11. f4 h6 12. Bxf6 Bxf6 13. e5 Be7 14. Na4 Qd8 15. exd6 Bxd6 16. Nxc5 Bxc5 17. Nf3 Qxd1 18. Raxd1 Be7 19. f5 Bf6 20. Rfe1 O-O 21. fxe6 Bxe6 22. Bxe6 fxe6 23. Rxe6 Bxb2 {[%emt 1:19:30]} 24. Rb6 {[%emt 1:00:00]} Bf6 {[%emt 0:00:30]} 25. Rxb7 {[%emt 0:00:30]} Rfc8 {[%emt 0:00:30]} 26. Rd2 {[%emt 0:00:30]} Rc4 {[%emt 0:01:30]} 27. Rb3 {[%emt 0:06:30]} Rac8 {[%emt 0:00:30]} 28. h3 {[%emt 0:04:30]} a5 {[%emt 0:01:30]} 29. Kg1 {[%emt 0:10:30]} Rxc2 {[%emt 0:03:34]} 30. Rxc2 {[%emt 0:00:30]} Rxc2 {[%emt 0:00:00]} 31. Ra3 {[%emt 0:00:30]} Bc3 {[%emt 0:00:05]} 32. Kf1 {[%emt 0:02:30]} Kf7 {[%emt 0:02:08]} 33. Ra4 {[%emt 0:13:34]} Ke6 {[%emt 0:01:37]} 34. Nd4+ {[%emt 0:04:44]} Bxd4 {[%emt 0:00:42]} 35. Rxd4 {[%emt 0:00:02]} Rxa2 {[%emt 0:00:06]} 36. Rg4 {[%emt 0:00:39]} g5 {[%emt 0:04:04]} 37. h4 {[%emt 0:01:05]} Kf5 {[%emt 0:00:09]} 38. Rc4 {[%emt 0:00:13]} g4 {[%emt 0:00:45]} 39. g3 {[%emt 0:01:01]} h5 {[%emt 0:00:14]} 40. Rd4 {[%emt 0:00:00]} Ke5 {[%emt 0:00:00]} 41. Rc4 {[%emt 0:10:12]} Ra3 {[%emt 0:07:06]} 42. Ke2 {[%emt 0:07:01]} Kd6 {[%emt 0:10:30]} 43. Rc8 {[%emt 0:07:03]} a4 {[%emt 0:16:33]} 44. Rh8 {[%emt 0:02:46]} Kc5 {[%emt 0:03:54]} 45. Rxh5+ {[%emt 0:00:44]} Kb4 {[%emt 0:01:21]} 46. Kf2 {[%emt 0:03:18]} Rf3+ {[%emt 0:00:42]} 47. Kg2 {[%emt 0:00:03]} Rd3 {[%emt 0:01:33]} 48. Rg5 {[%emt 0:01:40]} Rd4 {[%emt 0:00:04]} 49. Kf2 {[%emt 0:00:45]} a3 {[%emt 0:00:08]} 50. Ke3 {[%emt 0:00:00]} Rc4 {[%emt 0:01:28]} 51. Rd5 {[%emt 0:00:06]} a2 {[%emt 0:00:49]} 52. Rd1 {[%emt 0:00:03]} Kc3 {[%emt 0:01:59]} 53. h5 {[%emt 0:01:02]} Ra4 {[%emt 0:01:28]} 54. Ra1 {[%emt 0:01:32]} Kb2 {[%emt 0:00:05]} 55. Rxa2+ {[%emt 0:00:00]} Kxa2 {[%emt 0:00:33]} 56. h6 {[%emt 0:00:00]} Kb3 {[%emt 0:00:10]} 57. h7 {[%emt 0:00:25]} Ra8 {[%emt 0:00:30]} 58. Kf4 {[%emt 0:00:00]} Rh8 {[%emt 0:00:06]} 59. Kxg4 {[%emt 0:00:00]} Rxh7 {[%emt 0:00:00]} 60. Kf5 {[%emt 0:00:37]} Kc4 {[%emt 0:00:18]} 61. g4 {[%emt 0:00:05]} Kd5 {[%emt 0:00:17]} 62. Kf6 {[%emt 0:01:59]} Rh6+ {[%emt 0:00:36]} 63. Kf7 {[%emt 0:00:19]} Ke5 {[%emt 0:00:30]} 64. g5 {[%emt 0:00:26]} Ra6 {[%emt 0:00:20]} 65. g6 {[%emt 0:00:45]} Ra7+ {[%emt 0:00:28]} 0-1

[Event "Turkish Super League 2019"]
[Site "Konya"]
[Date "2019.07.20"]
[Round "4"]
[White "Sanal, Vahap"]
[Black "Moiseenko, Vadim"]
[Result "1-0"]
[ECO "B23"]
[WhiteElo "2520"]
[BlackElo "2523"]
[Annotator "ChessBase"]
[PlyCount "69"]
[EventDate "2019.07.17"]
[EventType "team-tourn"]
[EventCountry "TUR"]
[SourceTitle "playchess.com"]
[Source "ChessBase"]
[SourceQuality "1"]
[TimeControl "40/5400+30:1800+30"]

1. e4 c5 2. Nc3 Nc6 3. Bb5 Nd4 4. Nf3 a6 5. Bd3 Nxf3+ 6. Qxf3 d6 7. a3 e6 8. b4 b6 9. Bb2 Bb7 10. O-O Nf6 11. Qh3 Rc8 12. Rae1 Be7 13. f4 c4 14. Be2 O-O 15. Bf3 Nd7 16. e5 Bxf3 17. Rxf3 b5 18. Ne4 d5 19. Ng3 c3 20. Bxc3 Qb6+ 21. Kh1 d4 22. Ba1 Rxc2 23. f5 {[%emt 1:09:30]} Rfc8 {[%emt 1:11:30]} 24. Rff1 {[%emt 0:04:30]} Bf8 {[%emt 0:01:30]} 25. Qg4 {[%emt 0:09:54]} d3 {[%emt 0:02:30]} 26. Ne4 {[%emt 0:02:00]} exf5 {[%emt 0:02:30]} 27. Qxf5 {[%emt 0:00:14]} Qe6 {[%emt 0:00:00]} 28. Qf3 {[%emt 0:00:19]} h6 {[%emt 0:04:00]} 29. Nd6 {[%emt 0:03:27]} Nxe5 {[%emt 0:04:26]} 30. Rxe5 {[%emt 0:02:01]} Qxd6 {[%emt 0:00:37]} 31. Qxf7+ {[%emt 0:00:13]} Kh7 {[%emt 0:00:49]} 32. Re6 {[%emt 0:00:47]} Qd8 {[%emt 0:00:06]} 33. Qf5+ {[%emt 0:02:31]} Kg8 {[%emt 0:00:50]} 34. Rxh6 {[%emt 0:00:36]} gxh6 {[%emt 0:00:07]} 35. Qf7# {[%emt 0:01:20]} 1-0

[Event "Turkish Super League 2019"]
[Site "Konya"]
[Date "2019.07.20"]
[Round "4"]
[White "Annaberdiev, Meilis"]
[Black "Esen, Baris"]
[Result "1-0"]
[ECO "B13"]
[WhiteElo "2515"]
[BlackElo "2478"]
[Annotator "ChessBase"]
[PlyCount "67"]
[EventDate "2019.07.17"]
[EventType "team-tourn"]
[EventCountry "TUR"]
[SourceTitle "playchess.com"]
[Source "ChessBase"]
[SourceQuality "1"]
[TimeControl "40/5400+30:1800+30"]

1. e4 c6 2. d4 d5 3. exd5 cxd5 4. Bd3 Nc6 5. c3 Qc7 6. Na3 a6 7. Nc2 Nf6 8. h3 g6 9. Nf3 Bg7 10. O-O Bf5 11. Bxf5 gxf5 12. Nce1 e6 13. Nd3 Bf8 14. Bf4 Bd6 15. Bxd6 Qxd6 16. Nfe5 Qc7 17. Rc1 Nxe5 18. Nxe5 O-O 19. c4 dxc4 20. Rxc4 Qe7 21. Qf3 Nd5 22. Qg3+ Kh8 23. Rfc1 Rad8 24. a3 Rd6 {[%emt 1:15:00]} 25. Kh1 {[%emt 1:05:30]} Rdd8 {[%emt 0:00:30]} 26. Kg1 {[%emt 0:00:30]} Rd6 {[%emt 0:01:30]} 27. Nd3 {[%emt 0:10:30]} Rfd8 {[%emt 0:03:30]} 28. Rc8 {[%emt 0:03:30]} Qf8 {[%emt 0:05:59]} 29. Ne5 {[%emt 0:02:30]} f4 {[%emt 0:04:08]} 30. Qh4 {[%emt 0:06:46]} Rxc8 {[%emt 0:08:50]} 31. Rxc8 {[%emt 0:00:30]} Qxc8 {[%emt 0:00:30]} 32. Nxf7+ {[%emt 0:00:00]} Kg8 {[%emt 0:00:00]} 33. Nxd6 {[%emt 0:00:00]} Qc7 {[%emt 0:01:47]} 34. Qg4+ {[%emt 0:00:00]} 1-0

[Event "Turkish Super League 2019"]
[Site "Konya"]
[Date "2019.07.20"]
[Round "4"]
[White "Atalik, Ekaterina"]
[Black "Yildiz Kadioglu, Betul Cemre"]
[Result "1/2-1/2"]
[ECO "A31"]
[WhiteElo "2459"]
[BlackElo "2290"]
[Annotator "ChessBase"]
[PlyCount "97"]
[EventDate "2019.07.17"]
[EventType "team-tourn"]
[EventCountry "TUR"]
[SourceTitle "playchess.com"]
[Source "ChessBase"]
[SourceQuality "1"]
[TimeControl "40/5400+30:1800+30"]

1. Nf3 d5 2. e3 c5 3. c4 Nf6 4. d4 cxd4 5. Nxd4 e5 6. Nb3 Nc6 7. cxd5 Qxd5 8. Bd2 Bf5 9. Nc3 Qd7 10. f3 Bd3 11. Bxd3 Qxd3 12. Qe2 O-O-O 13. Qxd3 Rxd3 14. Ke2 Rd8 15. Rhc1 Kb8 16. Be1 Be7 17. Bg3 Nh5 18. Bf2 h6 19. g4 Nf6 20. Bg3 Ka8 21. Rd1 b6 22. a3 Kb7 23. Rd2 h5 {[%emt 1:19:30]} 24. g5 {[%emt 1:01:00]} Nh7 {[%emt 0:00:30]} 25. h4 {[%emt 0:00:30]} f6 {[%emt 0:00:30]} 26. gxf6 {[%emt 0:00:30]} gxf6 {[%emt 0:00:30]} 27. Nd5 {[%emt 0:02:30]} Bf8 {[%emt 0:05:56]} 28. Rad1 {[%emt 0:03:30]} f5 {[%emt 0:05:44]} 29. Nc1 {[%emt 0:05:30]} Rg8 {[%emt 0:03:30]} 30. Bf2 {[%emt 0:00:00]} Rg7 {[%emt 0:03:12]} 31. Na2 {[%emt 0:04:00]} Rgd7 {[%emt 0:01:16]} 32. Nac3 {[%emt 0:00:30]} Na5 {[%emt 0:01:01]} 33. Rc2 {[%emt 0:03:30]} Nb3 {[%emt 0:00:49]} 34. Nb4 {[%emt 0:07:36]} Rxd1 {[%emt 0:01:45]} 35. Nxd1 {[%emt 0:00:16]} Nc5 {[%emt 0:00:51]} 36. Bg3 {[%emt 0:02:35]} e4 {[%emt 0:01:36]} 37. fxe4 {[%emt 0:02:10]} fxe4 {[%emt 0:00:02]} 38. Nf2 {[%emt 0:00:43]} Nf6 {[%emt 0:00:42]} 39. Na2 {[%emt 0:01:05]} Bh6 {[%emt 0:00:59]} 40. b4 {[%emt 0:06:07]} Ne6 {[%emt 0:00:00]} 41. Rd2 {[%emt 0:14:28]} Rxd2+ {[%emt 0:08:07]} 42. Kxd2 {[%emt 0:00:30]} Nd4 {[%emt 0:02:30]} 43. Nc3 {[%emt 0:04:30]} Nf5 {[%emt 0:02:30]} 44. Nfxe4 {[%emt 0:00:59]} Nxe4+ {[%emt 0:02:03]} 45. Nxe4 {[%emt 0:00:05]} Bxe3+ {[%emt 0:01:54]} 46. Kd3 {[%emt 0:00:36]} Kc6 {[%emt 0:08:42]} 47. a4 {[%emt 0:00:53]} Nxg3 {[%emt 0:02:46]} 48. Nxg3 {[%emt 0:00:57]} Bf2 {[%emt 0:00:05]} 49. Nxh5 {[%emt 0:02:46]} 1/2-1/2

[Event "Turkish Super League 2019"]
[Site "Konya"]
[Date "2019.07.20"]
[Round "4"]
[White "Daulyte-Cornette, Deimante"]
[Black "Tsolakidou, Stavroula"]
[Result "0-1"]
[ECO "B48"]
[WhiteElo "2444"]
[BlackElo "2423"]
[Annotator "NA"]
[PlyCount "52"]
[EventDate "2019.07.17"]
[EventType "team-tourn"]
[EventCountry "TUR"]
[SourceTitle "playchess.com"]
[Source "ChessBase"]
[SourceQuality "1"]
[TimeControl "40/5400+30:1800+30"]

1. e4 c5 2. Nc3 e6 3. Nf3 Nc6 4. d4 cxd4 5. Nxd4 Qc7 6. Be3 a6 7. a3 Be7 8. f4 b5 9. Qf3 Na5 10. Bf2 Bb7 11. Be2 Nc4 12. Qg3 Nxb2 13. O-O Rc8 14. Ncxb5 axb5 15. Nxb5 Qxc2 {[%emt 1:14:30]} 16. Qxg7 {[%emt 1:05:00]} Qxe2 {[%emt 0:00:30]} 17. Qxh8 {[%emt 0:00:30]} Kf8 {[%emt 0:00:30]} 18. Bd4 {[%emt 0:06:30]} f6 {[%emt 0:04:45]} 19. Rf2 {[%emt 0:11:34]} Qxb5 {[%emt 0:00:33]} 20. Qxh7 {[%emt 0:06:37]} Nd3 {[%emt 0:02:11]} 21. Rf3 {[%emt 0:00:14]} Qc4 {[%emt 0:00:59]} 22. Be3 {[%emt 0:02:34]} Bxe4 {[%emt 0:02:08]} 23. f5 {[%emt 0:00:17]} Bxf3 {[%emt 0:00:30]} 24. Bh6+ {[%emt 0:02:27]} Nxh6 {[%emt 0:00:30]} 25. Qxh6+ {[%emt 0:00:02]} Ke8 {[%emt 0:00:00]} 26. Qh8+ {[%emt 0:01:15]} Bf8 {[%emt 0:00:00]} 0-1

[Event "Turkish Super League 2019"]
[Site "Konya"]
[Date "2019.07.20"]
[Round "4"]
[White "Soysal, Serkan"]
[Black "Quparadze, Giga"]
[Result "0-1"]
[ECO "E32"]
[WhiteElo "2431"]
[BlackElo "2499"]
[Annotator "ChessBase"]
[PlyCount "100"]
[EventDate "2019.07.17"]
[EventType "team-tourn"]
[EventCountry "TUR"]
[SourceTitle "playchess.com"]
[Source "ChessBase"]
[SourceQuality "1"]
[TimeControl "40/5400+30:1800+30"]

1. d4 Nf6 2. c4 e6 3. Nc3 Bb4 4. Qc2 O-O 5. e4 d5 6. e5 Ne4 7. Bd3 c5 8. Nf3 cxd4 9. Nxd4 Nd7 10. Bf4 Ndc5 11. O-O Bxc3 12. bxc3 Bd7 13. Be2 Na4 14. cxd5 exd5 15. c4 Rc8 16. Qb3 dxc4 17. Bxc4 Nac3 18. Bxf7+ Rxf7 19. e6 Bxe6 20. Nxe6 Qf6 21. Rae1 Rc6 22. f3 Qxe6 23. fxe4 Nxa2 24. Qxe6 Rxe6 25. Bd2 Rc7 26. Rf3 Rc2 27. Rd3 b5 {[%emt 0:45:30]} 28. Rd8+ {[%emt 1:32:52]} Kf7 {[%emt 0:00:30]} 29. Rf1+ {[%emt 0:00:30]} Rf6 {[%emt 0:00:30]} 30. Rb1 {[%emt 0:00:30]} b4 {[%emt 0:01:30]} 31. h4 {[%emt 0:07:28]} a5 {[%emt 0:00:30]} 32. e5 {[%emt 0:00:02]} Rf5 {[%emt 0:00:30]} 33. Re1 {[%emt 0:00:19]} Ke7 {[%emt 0:00:30]} 34. Rd3 {[%emt 0:01:06]} Nc3 {[%emt 0:06:30]} 35. e6 {[%emt 0:03:02]} Rd5 {[%emt 0:00:30]} 36. Bg5+ {[%emt 0:00:09]} Ke8 {[%emt 0:00:00]} 37. Red1 {[%emt 0:01:43]} h6 {[%emt 0:01:00]} 38. Rxd5 {[%emt 0:00:45]} Nxd5 {[%emt 0:00:30]} 39. Rxd5 {[%emt 0:00:23]} hxg5 {[%emt 0:00:00]} 40. Rxa5 {[%emt 0:00:00]} b3 {[%emt 0:00:00]} 41. Rb5 {[%emt 0:05:41]} b2 {[%emt 0:02:30]} 42. Kh2 {[%emt 0:01:30]} Ke7 {[%emt 0:00:00]} 43. hxg5 {[%emt 0:00:30]} Kxe6 {[%emt 0:00:00]} 44. Kg3 {[%emt 0:17:33]} Kd6 {[%emt 0:00:30]} 45. Kf3 {[%emt 0:00:30]} Kc6 {[%emt 0:00:30]} 46. Rb8 {[%emt 0:00:00]} Kd5 {[%emt 0:00:00]} 47. g4 {[%emt 0:01:01]} Kd4 {[%emt 0:00:00]} 48. Rb7 {[%emt 0:02:04]} Kd3 {[%emt 0:00:30]} 49. Kf4 {[%emt 0:01:57]} Rc4+ {[%emt 0:00:00]} 50. Kf5 {[%emt 0:00:59]} Kc3 {[%emt 0:00:00]} 0-1

[Event "Turkish Super League 2019"]
[Site "Konya"]
[Date "2019.07.20"]
[Round "4"]
[White "Mammadzada, Gunay"]
[Black "Ayan, Bengu Sena"]
[Result "1-0"]
[ECO "C06"]
[WhiteElo "2427"]
[BlackElo "1885"]
[Annotator "NA"]
[PlyCount "63"]
[EventDate "2019.07.17"]
[EventType "team-tourn"]
[EventCountry "TUR"]
[SourceTitle "playchess.com"]
[Source "ChessBase"]
[SourceQuality "1"]
[TimeControl "40/5400+30:1800+30"]

1. e4 e6 2. d4 d5 3. Nd2 Nf6 4. e5 Nfd7 5. Bd3 c5 6. c3 Nc6 7. Ne2 cxd4 8. cxd4 f6 9. exf6 Nxf6 10. O-O Bd6 11. Nf3 O-O 12. Bf4 Bxf4 13. Nxf4 Ne4 14. Ne2 Rxf3 15. gxf3 Ng5 16. Kh1 e5 17. Qb3 Kh8 18. f4 Nf3 19. Rg1 e4 20. Bc2 Qh4 21. Rg2 Bh3 {[%emt 0:59:30]} 22. Rg3 {[%emt 1:17:00]} Bf1 {[%emt 0:14:30]} 23. Rxf3 {[%emt 0:02:30]} exf3 {[%emt 0:01:30]} 24. Ng3 {[%emt 0:10:50]} Bg2+ {[%emt 0:13:32]} 25. Kg1 {[%emt 0:00:05]} Qh3 {[%emt 0:01:58]} 26. Bf5 {[%emt 0:03:23]} Qh6 {[%emt 0:01:47]} 27. Qxb7 {[%emt 0:00:38]} Rg8 {[%emt 0:05:10]} 28. Rd1 {[%emt 0:06:59]} Bh3 {[%emt 0:02:16]} 29. Qd7 {[%emt 0:00:07]} Rd8 {[%emt 0:02:28]} 30. Re1 {[%emt 0:00:19]} Rf8 {[%emt 0:01:24]} 31. Re8 {[%emt 0:01:56]} Kg8 {[%emt 0:00:45]} 32. Qxd5+ {[%emt 0:00:13]} 1-0

[Event "Turkish Super League 2019"]
[Site "Konya"]
[Date "2019.07.20"]
[Round "4"]
[White "Szczepkowska, Karina"]
[Black "Caglar, Sila"]
[Result "1-0"]
[ECO "B23"]
[WhiteElo "2425"]
[BlackElo "2306"]
[Annotator "NA"]
[PlyCount "53"]
[EventDate "2019.07.17"]
[EventType "team-tourn"]
[EventCountry "TUR"]
[SourceTitle "playchess.com"]
[Source "ChessBase"]
[SourceQuality "1"]
[TimeControl "40/5400+30:1800+30"]

1. e4 c5 2. Nc3 Nc6 3. Bb5 Nd4 4. Nf3 g6 5. Bc4 Bg7 6. Nxd4 cxd4 7. Qf3 e6 8. Nb5 Be5 9. Qa3 Qb6 10. c3 dxc3 11. dxc3 f5 12. exf5 gxf5 13. Be3 Qc6 14. Be2 Nf6 15. O-O-O Kf7 {[%emt 1:26:56]} 16. Qb3 {[%emt 0:53:00]} a5 {[%emt 0:00:30]} 17. a4 {[%emt 0:02:30]} Rg8 {[%emt 0:04:09]} 18. Bf3 {[%emt 0:08:30]} d5 {[%emt 0:00:09]} 19. h3 {[%emt 0:00:30]} Bd7 {[%emt 0:04:04]} 20. g4 {[%emt 0:01:30]} f4 {[%emt 0:00:36]} 21. Bd4 {[%emt 0:04:30]} Bb8 {[%emt 0:01:03]} 22. Rhe1 {[%emt 0:02:30]} Rc8 {[%emt 0:02:33]} 23. Qc2 {[%emt 0:04:30]} Rh8 {[%emt 0:01:00]} 24. g5 {[%emt 0:00:30]} e5 {[%emt 0:00:16]} 25. Bxe5 {[%emt 0:01:30]} Bxe5 {[%emt 0:00:37]} 26. Rxe5 {[%emt 0:00:30]} Rhe8 {[%emt 0:00:35]} 27. Rxe8 {[%emt 0:00:30]} 1-0